bitfinex/quotes_BTCUSD_20250515
["timestamp","ask_amount","ask_price","bid_price","bid_amount"]
[1747316939479,0.89632441,101940.0,101930.0,0.05747245]
[1747316939627,0.99363381,101940.0,101930.0,0.05747245]
[1747316939830,1.02240389,101940.0,101930.0,0.05747245]
[1747316940064,1.28356389,101940.0,101930.0,0.05747245]
[1747316940253,1.28356389,101940.0,101930.0,0.02265747]
[1747316940254,1.66867381,101940.0,101930.0,0.02265747]
[1747316940463,0.66454085,101920.0,101870.0,0.0315]
[1747316940629,0.4213123,101890.0,101870.0,0.0315]
[1747316940979,1.06728332,101890.0,101870.0,0.0315]
[1747316941186,1.01248715,101890.0,101870.0,0.0315]
[1747316941421,0.84836919,101890.0,101870.0,0.0315]
[1747316941672,1.15445583,101890.0,101880.0,2.03378458]
[1747316942166,1.12792898,101890.0,101880.0,2.02593342]
[1747316942429,1.12792898,101890.0,101880.0,2.01808226]
[1747316942430,0.85488626,101890.0,101880.0,2.01808226]
[1747316942703,0.86388626,101890.0,101880.0,2.01808226]
[1747316942910,0.58480626,101890.0,101880.0,2.0102311]
[1747316943141,0.90820626,101890.0,101880.0,2.0102311]
[1747316943385,0.89124898,101890.0,101880.0,2.00237393]
[1747316943620,0.89124898,101890.0,101880.0,1.99451676]
[1747316943875,0.86330813,101890.0,101880.0,2.05901676]
[1747316944114,0.88782813,101890.0,101880.0,1.99451676]
[1747316944317,0.89782813,101890.0,101880.0,2.02581676]
[1747316944521,0.91436898,101890.0,101880.0,1.99451676]
[1747316944749,1.21436898,101890.0,101880.0,1.99451676]
[1747316944956,1.25876606,101890.0,101880.0,1.98665959]
[1747316945109,1.25876606,101890.0,101880.0,1.85321014]
[1747316945311,1.20436898,101890.0,101880.0,1.84535297]
[1747316945514,0.95876606,101890.0,101880.0,1.32292517]
[1747316945740,0.95876606,101890.0,101880.0,1.19063714]
[1747316945741,1.33561142,101890.0,101880.0,1.19063714]
[1747316945905,1.08561142,101890.0,101880.0,0.92193298]
[1747316946104,0.98562555,101890.0,101880.0,0.76275585]
[1747316946301,0.98562555,101890.0,101880.0,0.65833582]
[1747316946302,1.97873947,101890.0,101880.0,0.65833582]
[1747316946555,1.96462555,101890.0,101880.0,0.65047865]
[1747316946759,2.05862555,101890.0,101880.0,0.65047865]
[1747316946916,2.00862555,101890.0,101880.0,0.60824635]
[1747316947114,2.00862555,101890.0,101880.0,0.59346635]
[1747316947316,1.70422847,101890.0,101880.0,0.54728657]
[1747316947560,1.70422847,101890.0,101880.0,0.51291144]
[1747316947796,1.70422847,101890.0,101880.0,0.50505427]
[1747316947797,1.67736898,101890.0,101880.0,0.50505427]
[1747316948229,1.65436898,101890.0,101880.0,0.46282197]
[1747316948425,1.69729931,101890.0,101880.0,0.46282197]
[1747316948626,1.67629931,101890.0,101880.0,0.4549648]
[1747316948861,1.67629931,101890.0,101880.0,0.37058967]
[1747316949083,2.00769639,101890.0,101880.0,0.30872011]
[1747316949309,1.68009364,101890.0,101880.0,0.27822011]
[1747316949540,1.75957964,101890.0,101880.0,0.23598781]
[1747316949778,1.75957964,101890.0,101880.0,0.22813064]
[1747316949779,1.70957964,101890.0,101880.0,0.22813064]
[1747316949964,1.73697672,101890.0,101880.0,0.16917453]
[1747316950183,1.62105964,101890.0,101880.0,0.16131736]
[1747316950394,1.64420446,101890.0,101880.0,0.16131736]
[1747316950590,1.36120446,101890.0,101880.0,0.22351736]
[1747316950814,0.97672446,101890.0,101880.0,0.22351736]
[1747316951019,1.34088446,101890.0,101880.0,0.22351736]
[1747316951298,0.62887846,101890.0,101880.0,0.22351736]
[1747316951739,0.58594813,101890.0,101880.0,0.22351736]
[1747316951943,0.55870813,101890.0,101880.0,0.22351736]
[1747316952163,0.56870813,101890.0,101880.0,0.22351736]
[1747316952375,0.93570813,101890.0,101880.0,0.22351736]
[1747316952805,0.92570813,101890.0,101880.0,0.22351736]
[1747316952985,0.58570813,101890.0,101880.0,0.22351736]
[1747316953192,0.55870813,101890.0,101880.0,0.22351736]
[1747316953436,0.93470813,101890.0,101880.0,0.22351736]
[1747316953969,0.90770813,101890.0,101880.0,0.22351736]
[1747316954201,0.54607413,101890.0,101880.0,0.22351736]
[1747316954630,0.91031413,101890.0,101880.0,0.22351736]
[1747316955309,0.89534149,101890.0,101880.0,0.22351736]
[1747316955529,0.89630149,101890.0,101880.0,0.22351736]
[1747316957773,0.91130148,101890.0,101880.0,0.22351736]
[1747316958152,0.92130148,101890.0,101880.0,0.22351736]
[1747316958354,1.28013941,101890.0,101880.0,0.16131736]
[1747316958557,0.98013941,101890.0,101880.0,0.22401736]
[1747316958856,0.93584233,101890.0,101880.0,0.22401736]
[1747316959083,0.94584233,101890.0,101880.0,0.22401736]
[1747316959678,1.30013941,101890.0,101880.0,0.22401736]
[1747316960278,1.24584233,101890.0,101880.0,0.22401736]
[1747316961480,0.93584233,101890.0,101880.0,0.22401736]
[1747316961654,0.92130148,101890.0,101880.0,0.22401736]
[1747316961873,0.54610148,101890.0,101880.0,0.22401736]
[1747316962095,0.56714148,101890.0,101880.0,0.22401736]
[1747316962716,0.90714148,101890.0,101880.0,0.22401736]
[1747316963890,0.19110149,101890.0,101880.0,0.22401736]
[1747316964088,0.55295552,101890.0,101880.0,0.22401736]
[1747316964295,0.89050149,101890.0,101880.0,0.22401736]
[1747316964494,0.55050149,101890.0,101880.0,0.22401736]
[1747316964696,0.89050149,101890.0,101880.0,0.22401736]
[1747316965428,0.88150149,101890.0,101880.0,0.22401736]
[1747316965833,0.88950149,101890.0,101880.0,0.22401736]
[1747316966063,0.86850149,101890.0,101880.0,0.22401736]
[1747316966211,0.87950149,101890.0,101880.0,0.22401736]
[1747316966412,0.88550149,101890.0,101880.0,0.22401736]
[1747316966823,0.87450149,101890.0,101880.0,0.22401736]
[1747316967232,0.88450149,101890.0,101880.0,0.22401736]
[1747316973282,0.87761149,101890.0,101880.0,0.22401736]
[1747316973510,0.67909591,101890.0,101880.0,0.22401736]
[1747316973713,1.01909591,101890.0,101880.0,0.22401736]
[1747316975099,1.01309591,101890.0,101880.0,0.22401736]
[1747316975506,1.01809591,101890.0,101880.0,0.57549736]
[1747316975714,1.00809591,101890.0,101880.0,0.57549736]
[1747316976165,1.01609591,101890.0,101880.0,0.57649736]
[1747316978437,1.01609591,101890.0,101880.0,0.22501736]
[1747316980243,1.01609591,101890.0,101880.0,0.16231736]
[1747316981438,1.01609591,101890.0,101880.0,0.19241736]
[1747316981892,1.01109591,101890.0,101880.0,0.22361736]
[1747316982114,1.01009591,101890.0,101880.0,0.22261736]
[1747316982509,1.01009591,101890.0,101850.0,6e-05]
[1747316982510,1.18276015,101890.0,101850.0,6e-05]
[1747316982722,0.40107621,101850.0,101840.0,0.06270661]
[1747316982981,0.40107621,101850.0,101810.0,2.07510576]
[1747316982982,0.87574646,101840.0,101810.0,2.07510576]
[1747316983226,1.38049689,101840.0,101810.0,2.07510576]
[1747316983422,0.94141689,101840.0,101810.0,2.07510576]
[1747316983629,1.69646317,101840.0,101810.0,2.07510576]
[1747316983845,1.69646317,101840.0,101830.0,0.09214627]
[1747316983846,1.37192232,101840.0,101830.0,0.09214627]
[1747316984057,1.37240182,101840.0,101830.0,0.09214627]
[1747316985520,1.39340182,101840.0,101830.0,0.09214627]
[1747316986577,1.51985842,101840.0,101830.0,0.08428692]
[1747316986786,1.44194267,101840.0,101830.0,0.08428692]
[1747316986903,1.43194267,101840.0,101830.0,0.07642757]
[1747316987112,1.44194267,101840.0,101830.0,0.07642757]
[1747316987319,1.44194267,101840.0,101830.0,0.06856822]
[1747316987783,1.44194267,101840.0,101830.0,0.06070887]
[1747316988171,1.44194267,101840.0,101830.0,0.05284952]
[1747316988529,1.73194267,101840.0,101830.0,0.04499017]
[1747316988741,1.71740182,101840.0,101830.0,0.04499017]
[1747316989782,1.74194267,101840.0,101830.0,0.04499017]
[1747316992982,1.80088267,101840.0,101830.0,0.04499017]
[1747316993746,1.83037567,101840.0,101830.0,0.04499017]
[1747316994214,1.9619486,101840.0,101830.0,0.03713047]
[1747316994415,1.9619486,101840.0,101830.0,0.00274427]
[1747316994416,1.9519486,101840.0,101830.0,0.00274427]
[1747316994622,0.55606689,101820.0,101810.0,2.07510576]
[1747316994837,0.55606689,101820.0,101810.0,2.13760576]
[1747316994838,0.70207629,101820.0,101810.0,2.13760576]
[1747316995035,1.04059629,101820.0,101810.0,2.13760576]
[1747316995624,1.04059629,101820.0,101810.0,2.07510576]
[1747316995825,1.04059629,101820.0,101810.0,2.06724606]
[1747316995826,1.46773432,101820.0,101810.0,2.06724606]
[1747316996163,1.48573432,101820.0,101810.0,2.05938636]
[1747316996676,1.48573432,101820.0,101810.0,2.05152666]
[1747316996993,1.48573432,101820.0,101810.0,2.04366696]
[1747316997190,1.44207714,101820.0,101810.0,2.04366696]
[1747316997402,1.44207714,101820.0,101810.0,2.03580726]
[1747316997634,1.49573432,101820.0,101810.0,2.03580726]
[1747316997839,1.48573432,101820.0,101810.0,2.02794756]
[1747316998038,1.48573432,101820.0,101810.0,2.02008786]
[1747316998452,1.38313714,101820.0,101810.0,2.01222816]
[1747316998704,1.05859629,101820.0,101810.0,2.01222816]
[1747316998907,1.04059629,101820.0,101810.0,2.01222816]
[1747316999120,1.07159629,101820.0,101810.0,2.01222816]
[1747316999808,1.08559629,101820.0,101810.0,2.01222816]
[1747317000028,1.09559629,101820.0,101810.0,2.01222816]
[1747317001181,1.12013714,101820.0,101810.0,2.01222816]
[1747317001419,1.42013714,101820.0,101810.0,2.00436616]
[1747317001634,1.60065007,101820.0,101810.0,2.00436616]
[1747317001846,1.66225007,101820.0,101810.0,1.99650416]
[1747317002368,1.51273432,101820.0,101810.0,1.98864216]
[1747317002607,1.75573714,101820.0,101810.0,1.98864216]
[1747317002851,0.74761714,101820.0,101810.0,1.98864216]
[1747317003097,0.72983629,101820.0,101810.0,2.05054216]
[1747317003331,0.75683629,101820.0,101810.0,2.05054216]
[1747317004039,1.06983629,101820.0,101810.0,2.05054216]
[1747317004268,0.72983629,101820.0,101810.0,2.05054216]
[1747317004748,1.04283629,101820.0,101810.0,2.05054216]
[1747317005250,1.05183629,101820.0,101810.0,2.05054216]
[1747317005700,1.13003432,101820.0,101810.0,1.98864216]
[1747317005913,1.50895007,101820.0,101810.0,1.98078016]
[1747317006131,1.50895007,101820.0,101810.0,1.97291816]
[1747317006351,1.56205007,101820.0,101810.0,1.97291816]
[1747317006582,1.85105007,101820.0,101810.0,1.96505616]
[1747317006809,1.87305007,101820.0,101810.0,1.96505616]
[1747317007037,1.87305007,101820.0,101810.0,1.95719416]
[1747317007279,1.89905007,101820.0,101810.0,1.95819416]
[1747317007498,1.87305007,101820.0,101810.0,1.94933216]
[1747317007734,1.87305007,101820.0,101810.0,1.94146888]
[1747317008195,0.83237432,101820.0,101810.0,1.9336056]
[1747317008413,1.41445714,101820.0,101810.0,1.9336056]
[1747317009118,1.44145714,101820.0,101810.0,1.9336056]
[1747317010257,1.49511432,101820.0,101810.0,1.9336056]
[1747317010478,1.50511432,101820.0,101810.0,1.9336056]
[1747317010697,1.49511432,101820.0,101810.0,1.9336056]
[1747317011840,1.50511432,101820.0,101810.0,1.9336056]
[1747317012091,1.49511432,101820.0,101810.0,1.9336056]
[1747317012300,1.44145714,101820.0,101810.0,1.9336056]
[1747317012517,1.46835794,101820.0,101810.0,1.9336056]
[1747317012741,1.59993087,101820.0,101810.0,1.9336056]
[1747317012993,1.52201512,101820.0,101810.0,1.9336056]
[1747317013438,1.46381709,101820.0,101810.0,1.9336056]
[1747317013656,1.47835794,101820.0,101810.0,1.9336056]
[1747317015873,2.17835794,101820.0,101810.0,1.9336056]
[1747317017721,2.17835794,101820.0,101810.0,1.9655056]
[1747317017905,2.17835794,101820.0,101810.0,1.9336056]
[1747317019040,1.47835794,101820.0,101810.0,1.9336056]
[1747317019259,1.53201512,101820.0,101810.0,1.9336056]
[1747317020401,1.56151712,101820.0,101810.0,1.9336056]
[1747317020628,2.26151712,101820.0,101810.0,1.9336056]
[1747317022174,1.58567712,101820.0,101810.0,1.9983056]
[1747317022398,1.18363909,101820.0,101810.0,1.9983056]
[1747317022625,1.18363909,101820.0,101810.0,1.9654056]
[1747317022844,1.18363909,101820.0,101810.0,1.9336056]
[1747317023070,1.26151686,101820.0,101810.0,1.9336056]
[1747317023979,1.96151686,101820.0,101810.0,1.9336056]
[1747317024691,2.32487686,101820.0,101810.0,1.9336056]
[1747317025380,3.27153994,101820.0,101810.0,1.9336056]
[1747317025614,2.37207686,101820.0,101810.0,1.86138797]
[1747317025842,2.4006931,101820.0,101810.0,1.84524281]
[1747317026070,2.37207686,101820.0,101810.0,1.83738093]
[1747317026326,2.37207686,101820.0,101810.0,1.82951905]
[1747317026561,2.37207686,101820.0,101810.0,1.78038227]
[1747317026784,2.37207686,101820.0,101810.0,1.76985168]
[1747317027018,2.37207686,101820.0,101810.0,1.7560838]
[1747317027239,2.37207686,101820.0,101810.0,1.74822192]
[1747317027483,2.37207686,101820.0,101810.0,1.74296192]
[1747317027722,2.5106331,101820.0,101810.0,0.09899954]
[1747317028179,1.75236242,101810.0,101800.0,0.02811893]
[1747317028390,0.92522748,101800.0,101790.0,0.0099101]
[1747317028619,1.00718064,101800.0,101790.0,0.0099101]
[1747317028833,1.03408144,101800.0,101790.0,0.00204822]
[1747317029055,0.58069264,101780.0,101770.0,0.05392481]
[1747317029297,1.90380204,101780.0,101770.0,0.05392481]
[1747317029519,1.982022,101780.0,101770.0,0.05392481]
[1747317029726,1.98250091,101780.0,101770.0,0.05392481]
[1747317029953,1.98250091,101780.0,101770.0,0.04099156]
[1747317030198,2.01300091,101780.0,101770.0,0.04099156]
[1747317030424,2.04310091,101780.0,101770.0,0.04099156]
[1747317030687,1.24196633,101780.0,101770.0,0.04099156]
[1747317030949,1.90032341,101780.0,101770.0,0.10569156]
[1747317031166,2.21032341,101780.0,101770.0,0.10569156]
[1747317031394,2.21032341,101780.0,101770.0,0.02504156]
[1747317031395,2.24232932,101780.0,101770.0,0.02504156]
[1747317031620,0.54636773,101760.0,101750.0,0.06698]
[1747317031865,0.67057793,101760.0,101750.0,0.06698]
[1747317032071,0.64367713,101760.0,101750.0,0.06698]
[1747317032283,0.67319013,101760.0,101750.0,0.06698]
[1747317033155,0.68319013,101760.0,101750.0,0.06698]
[1747317035310,0.77517539,101760.0,101750.0,0.06698]
[1747317035520,0.74819305,101760.0,101750.0,0.06698]
[1747317035775,0.8316739,101760.0,101750.0,0.00098]
[1747317035983,0.85864746,101760.0,101750.0,0.00098]
[1747317036620,0.8872637,101760.0,101750.0,0.00098]
[1747317037359,1.1772637,101760.0,101750.0,0.00098]
[1747317037578,1.09564454,101760.0,101750.0,0.03168]
[1747317037790,1.1316739,101760.0,101750.0,0.00098]
[1747317037998,1.12830263,101760.0,101750.0,0.00098]
[1747317038416,1.12830263,101760.0,101730.0,0.064]
[1747317038417,1.62203177,101750.0,101730.0,0.064]
[1747317038636,0.03420004,101730.0,101710.0,0.01115061]
[1747317038849,0.21636438,101680.0,101670.0,2.10196639]
[1747317039060,0.21636438,101680.0,101670.0,2.13486639]
[1747317039061,0.92438523,101680.0,101670.0,2.13486639]
[1747317039482,0.90984438,101680.0,101670.0,2.13486639]
[1747317039914,0.9103227,101680.0,101670.0,2.13486639]
[1747317040123,0.9398597,101680.0,101670.0,2.13486639]
[1747317040324,0.9458597,101680.0,101670.0,2.13486639]
[1747317040786,0.9163227,101680.0,101670.0,2.13486639]
[1747317041475,0.9163227,101680.0,101670.0,2.0295882]
[1747317041476,1.0136321,101680.0,101670.0,2.0295882]
[1747317041797,0.93995168,101630.0,101620.0,0.13885737]
[1747317042055,0.91023083,101630.0,101620.0,0.13885737]
[1747317042339,0.91023083,101630.0,101620.0,0.49337737]
[1747317042583,0.66754023,101630.0,101620.0,0.49337737]
[1747317042890,0.66754023,101630.0,101620.0,0.96958417]
[1747317042891,0.20445878,101630.0,101620.0,0.96958417]
[1747317043160,0.11915042,101630.0,101620.0,0.96958417]
[1747317043389,0.20377083,101630.0,101620.0,0.90728417]
[1747317043568,0.22247083,101630.0,101620.0,0.90728417]
[1747317044040,0.19678991,101640.0,101620.0,0.90728417]
[1747317044245,0.19678991,101640.0,101630.0,0.0019676]
[1747317044903,0.20663141,101630.0,101620.0,0.85697926]
[1747317045122,0.20663141,101630.0,101620.0,0.94478625]
[1747317045329,0.21163141,101630.0,101620.0,0.94478625]
[1747317045533,0.21163141,101630.0,101620.0,0.85697926]
[1747317045946,0.20963141,101630.0,101620.0,0.85697926]
[1747317046152,0.21263141,101630.0,101620.0,0.85697926]
[1747317046357,0.20963141,101630.0,101620.0,0.85697926]
[1747317046537,0.21063141,101630.0,101620.0,0.85697926]
[1747317046779,0.20079228,101630.0,101620.0,1.04209565]
[1747317048258,0.22629834,101650.0,101640.0,0.03454085]
[1747317048464,0.20662662,101660.0,101640.0,0.12923937]
[1747317048690,0.20662637,101650.0,101640.0,0.11273136]
[1747317048915,0.21644991,101640.0,101630.0,0.01454085]
[1747317049132,0.22628797,101640.0,101630.0,0.02454085]
[1747317049303,0.22628797,101640.0,101630.0,0.03454085]
[1747317049536,0.22628797,101640.0,101630.0,0.13185025]
[1747317049537,0.21644933,101640.0,101630.0,0.13185025]
[1747317049752,0.20662627,101650.0,101640.0,0.014]
[1747317049956,0.21646346,101650.0,101640.0,0.21330284]
[1747317050236,0.22630094,101650.0,101640.0,0.21930284]
[1747317050455,0.27470464,101650.0,101620.0,0.52245926]
[1747317050661,0.21647024,101630.0,101620.0,0.51245926]
[1747317050875,0.20663111,101630.0,101620.0,0.52245926]
[1747317051077,0.20663111,101630.0,101620.0,0.70658319]
[1747317051297,0.22630926,101630.0,101620.0,0.68674281]
[1747317051520,0.23614868,101630.0,101620.0,0.69674281]
[1747317051728,0.23614868,101630.0,101620.0,0.71128366]
[1747317051930,0.22630985,101630.0,101620.0,0.70128366]
[1747317052141,0.22630985,101630.0,101620.0,0.67674281]
[1747317052382,0.21747092,101630.0,101620.0,0.69174281]
[1747317052627,0.2076317,101630.0,101620.0,0.69774281]
[1747317052854,0.2076317,101630.0,101620.0,0.50745926]
[1747317053082,0.2086317,101630.0,101620.0,0.51345926]
[1747317054463,0.2076317,101630.0,101620.0,0.50845926]
[1747317054686,0.2066317,101630.0,101620.0,0.50245926]
[1747317054917,0.2066317,101630.0,101620.0,0.50545926]
[1747317055181,0.2076317,101630.0,101620.0,0.50945926]
[1747317055419,0.2076317,101630.0,101620.0,0.56111425]
[1747317056308,0.2076317,101630.0,101620.0,0.65842365]
[1747317056500,0.19779228,101630.0,101620.0,0.6729645]
[1747317056773,0.21747004,101630.0,101620.0,1.22500976]
[1747317057017,0.001,101630.0,101620.0,1.45134198]
[1747317057258,0.20662642,101660.0,101640.0,0.04437939]
[1747317057486,0.20662642,101660.0,101650.0,0.00196712]
[1747317057741,0.20662642,101660.0,101650.0,0.01196712]
[1747317058243,0.21646264,101660.0,101650.0,0.5341718]
[1747317058472,0.19678991,101670.0,101650.0,0.01]
[1747317058694,0.20660611,101660.0,101650.0,0.05083821]
[1747317058914,0.20660611,101660.0,101650.0,0.14814761]
[1747317059349,0.21744233,101660.0,101650.0,0.14914761]
[1747317060256,0.20760611,101660.0,101650.0,0.0983094]
[1747317060478,0.20760611,101660.0,101650.0,0.42592]
[1747317060916,0.21744233,101660.0,101650.0,0.5232294]
[1747317061362,0.20760611,101660.0,101650.0,0.5232294]
[1747317062705,0.21744233,101660.0,101650.0,0.5232294]
[1747317062942,0.23711487,101660.0,101650.0,0.6205388]
[1747317063147,0.22727894,101660.0,101650.0,0.6205388]
[1747317063348,0.21744272,101660.0,101650.0,0.6205388]
[1747317063553,0.1977696,101660.0,101650.0,1.38387547]
[1747317063765,0.21744175,101660.0,101650.0,0.65507965]
[1747317064189,0.21744175,101660.0,101650.0,0.66491732]
[1747317064394,0.21744175,101660.0,101650.0,0.6747549]
[1747317064608,0.21644175,101660.0,101650.0,0.65507965]
[1747317064835,0.23611488,101660.0,101650.0,0.65407965]
[1747317065045,0.23611468,101660.0,101650.0,0.65407965]
[1747317065255,0.22627817,101660.0,101650.0,0.65607965]
[1747317065506,0.2065296,101680.0,101670.0,0.00983574]
[1747317065714,0.21636379,101680.0,101670.0,0.38564613]
[1747317065935,0.19674494,101700.0,101680.0,0.23636456]
[1747317066153,0.27468782,101710.0,101690.0,0.31381918]
[1747317066154,0.19677207,101710.0,101690.0,0.31381918]
[1747317066366,0.01966297,101710.0,101690.0,0.32852642]
[1747317066576,0.19672749,101720.0,101690.0,0.39088222]
[1747317066805,0.21632144,101700.0,101690.0,0.40085762]
[1747317067012,0.22615418,101700.0,101690.0,0.39102411]
[1747317067219,0.21632202,101700.0,101690.0,0.14997348]
[1747317067426,0.21632202,101700.0,101690.0,0.09745129]
[1747317067636,0.21632202,101700.0,101690.0,0.10745129]
[1747317067814,0.20648957,101700.0,101690.0,0.09745129]
[1747317068239,0.20648957,101700.0,101690.0,0.10941758]
[1747317068652,0.20648957,101700.0,101690.0,0.10041758]
[1747317068870,0.20648957,101700.0,101690.0,0.03776982]
[1747317069093,0.27008957,101700.0,101690.0,0.42598189]
[1747317069581,0.27008957,101700.0,101690.0,0.42498189]
[1747317069822,0.27008957,101700.0,101690.0,0.42598189]
[1747317070277,0.27008957,101700.0,101690.0,0.42498189]
[1747317071165,0.20648957,101700.0,101690.0,0.42498189]
[1747317071385,0.20648957,101700.0,101690.0,0.48913285]
[1747317071613,0.20948957,101700.0,101690.0,0.48913285]
[1747317071820,0.21248957,101700.0,101690.0,0.48913285]
[1747317072243,0.20948957,101700.0,101690.0,0.48913285]
[1747317072664,0.20648957,101700.0,101690.0,0.48913285]
[1747317073120,0.20848957,101700.0,101690.0,0.48913285]
[1747317073337,0.19663749,101710.0,101690.0,0.80278555]
[1747317073545,0.19663749,101710.0,101700.0,0.00196611]
[1747317073752,0.21630094,101710.0,101700.0,0.00196611]
[1747317073962,0.20648947,101700.0,101690.0,0.58644225]
[1747317075031,0.21632202,101700.0,101690.0,0.58644225]
[1747317075868,0.21632202,101700.0,101690.0,0.58744225]
[1747317076286,0.21647083,101630.0,101620.0,0.07755737]
[1747317076445,0.21647083,101630.0,101620.0,0.07770189]
[1747317076446,0.2367317,101630.0,101620.0,0.07770189]
[1747317076648,0.2066317,101630.0,101620.0,0.08677792]
[1747317078027,0.2076317,101630.0,101620.0,0.52558561]
[1747317078317,0.2076317,101630.0,101620.0,0.52361792]
[1747317078523,0.21647083,101630.0,101620.0,0.51161792]
[1747317078727,0.19679228,101630.0,101620.0,0.60879716]
[1747317078931,0.22630937,101630.0,101620.0,0.61279716]
[1747317079135,0.22730937,101630.0,101620.0,0.61679716]
[1747317079581,0.22730937,101630.0,101620.0,0.84814966]
[1747317079582,0.001,101630.0,101620.0,0.84814966]
[1747317079789,0.23714946,101630.0,101620.0,0.65133801]
[1747317079994,0.21747043,101630.0,101620.0,0.66117849]
[1747317080145,0.001,101630.0,101620.0,0.84814966]
[1747317080357,0.001,101630.0,101620.0,0.87767023]
[1747317080556,0.001,101630.0,101620.0,1.21767023]
[1747317081985,0.77004029,101630.0,101620.0,0.08557173]
[1747317082194,0.76758023,101630.0,101620.0,0.08557173]
[1747317082746,0.76658023,101630.0,101620.0,0.08157173]
[1747317083341,0.76858023,101630.0,101620.0,0.07757173]
[1747317083528,0.76658023,101630.0,101620.0,0.07757173]
[1747317084179,0.76658023,101630.0,101620.0,0.07657173]
[1747317085000,0.77358023,101630.0,101620.0,0.07757173]
[1747317085209,0.76858023,101630.0,101620.0,0.07757173]
[1747317085338,0.76658023,101630.0,101620.0,0.07757173]
[1747317085779,0.77158023,101630.0,101620.0,0.07857173]
[1747317085989,0.77158023,101630.0,101620.0,0.08773478]
[1747317086613,0.77158023,101630.0,101620.0,0.07857173]
[1747317088001,0.79876824,101630.0,101620.0,0.07857173]
[1747317088572,0.7938638,101630.0,101620.0,0.07857173]
[1747317088776,0.7643128,101630.0,101620.0,0.07857173]
[1747317088985,0.3270034,101630.0,101620.0,0.07857173]
[1747317089203,0.32686761,101630.0,101620.0,0.08773478]
[1747317089850,0.32578729,101630.0,101620.0,0.07857173]
[1747317091064,0.27708729,101630.0,101620.0,0.07857173]
[1747317091298,0.21663141,101630.0,101620.0,0.07857173]
[1747317091514,0.21663141,101630.0,101620.0,0.50561935]
[1747317091515,0.22647121,101630.0,101620.0,0.50561935]
[1747317091734,0.23631024,101630.0,101620.0,0.60096113]
[1747317091956,0.01983874,101630.0,101620.0,0.91411724]
[1747317092195,0.23630888,101630.0,101620.0,0.91311724]
[1747317092416,0.005,101630.0,101620.0,1.41078859]
[1747317092630,0.007,101630.0,101620.0,0.93311724]
[1747317092845,0.002,101630.0,101620.0,0.94665809]
[1747317093061,0.004,101630.0,101620.0,0.94665809]
[1747317093275,0.004,101630.0,101620.0,0.94865809]
[1747317093498,0.21063121,101630.0,101620.0,0.928978]
[1747317093714,0.24014907,101630.0,101620.0,0.90459677]
[1747317093928,0.23030956,101630.0,101620.0,0.93411773]
[1747317094145,0.23030966,101630.0,101620.0,0.93411773]
[1747317094355,0.22830976,101630.0,101620.0,0.91427773]
[1747317094578,0.21847083,101630.0,101620.0,0.69778512]
[1747317094795,0.002,101630.0,101620.0,1.43817012]
[1747317095014,0.002,101630.0,101620.0,1.45167012]
[1747317095417,0.002,101630.0,101620.0,1.79267012]
[1747317096086,0.002,101630.0,101620.0,1.72429877]
[1747317096275,0.002,101630.0,101620.0,2.89267012]
[1747317096867,0.22628948,101660.0,101650.0,0.21642843]
[1747317097066,0.23612609,101660.0,101650.0,0.35017029]
[1747317097269,0.23612609,101660.0,101650.0,0.35017039]
[1747317097507,0.01967215,101660.0,101650.0,0.38471124]
[1747317097638,0.22624278,101660.0,101650.0,0.40438591]
[1747317097843,0.22624278,101660.0,101650.0,0.39454872]
[1747317098085,0.22624278,101660.0,101650.0,0.40438601]
[1747317098292,0.21646009,101670.0,101660.0,0.20657092]
[1747317098496,0.00983487,101670.0,101660.0,0.40576836]
[1747317098719,0.29437085,101680.0,101670.0,0.2065506]
[1747317098890,0.29427955,101680.0,101670.0,0.73869545]
[1747317099097,0.22619828,101680.0,101670.0,0.75340085]
[1747317099381,0.21636457,101680.0,101670.0,0.63845942]
[1747317099593,0.25916389,101710.0,101690.0,0.21634329]
[1747317099839,0.03932932,101700.0,101690.0,0.32836022]
[1747317100263,0.27464486,101720.0,101700.0,0.22615418]
[1747317100465,0.32491387,101730.0,101710.0,0.30377847]
[1747317100672,0.22610972,101720.0,101710.0,0.36465387]
[1747317100905,0.22610972,101720.0,101710.0,0.78965387]
[1747317101114,0.22610972,101720.0,101710.0,0.77982229]
[1747317101418,0.21627949,101720.0,101710.0,0.77982229]
[1747317101584,0.21627949,101720.0,101710.0,0.80946165]
[1747317101804,0.27765428,101730.0,101710.0,0.78979762]
[1747317102021,0.23008779,101730.0,101720.0,0.2084147]
[1747317102237,0.21625843,101730.0,101720.0,0.17935971]
[1747317102775,0.24675843,101730.0,101720.0,0.08401603]
[1747317103178,0.25075843,101730.0,101720.0,0.08401603]
[1747317103377,0.24675843,101730.0,101720.0,0.08401603]
[1747317103833,0.21625843,101730.0,101720.0,0.18132543]
[1747317104206,0.21242878,101730.0,101720.0,0.3877744]
[1747317104365,0.02565901,101730.0,101720.0,0.40546943]
[1747317104569,0.02565862,101730.0,101720.0,0.42546943]
[1747317104757,0.05514727,101730.0,101720.0,0.43529985]
[1747317104958,0.05514727,101730.0,101720.0,0.41546962]
[1747317104959,0.05514814,101730.0,101720.0,0.41546962]
[1747317105214,0.25491772,101730.0,101720.0,0.0973094]
[1747317105423,0.20644887,101720.0,101710.0,0.42514452]
[1747317105620,0.21627948,101720.0,101710.0,0.72892318]
[1747317105866,0.00983003,101720.0,101710.0,0.76329551]
[1747317106198,0.02949058,101720.0,101710.0,0.7731267]
[1747317106403,0.05431743,101730.0,101720.0,0.25065076]
[1747317106673,0.25874621,101730.0,101720.0,0.35779048]
[1747317106895,0.25874669,101730.0,101720.0,0.12185025]
[1747317107029,0.25874669,101730.0,101720.0,0.34992557]
[1747317107030,0.04248845,101730.0,101720.0,0.34992557]
[1747317107240,0.02965871,101730.0,101720.0,0.34795997]
[1747317107443,0.011,101730.0,101720.0,0.92908983]
[1747317107646,0.011,101730.0,101720.0,0.45141848]
[1747317108052,0.02082907,101730.0,101720.0,0.45141848]
[1747317108261,0.011,101730.0,101720.0,0.45141848]
[1747317108863,0.02965843,101730.0,101720.0,0.45141848]
[1747317109087,0.01,101730.0,101720.0,0.45441848]
[1747317109438,0.01,101730.0,101720.0,0.94558983]
[1747317109871,0.01,101730.0,101720.0,0.93208983]
[1747317110133,0.01982926,101730.0,101720.0,0.93208983]
[1747317110345,0.01,101730.0,101720.0,0.45441848]
[1747317110555,0.23589374,101740.0,101730.0,0.25079908]
[1747317110773,0.02948536,101740.0,101730.0,0.42402239]
[1747317111014,0.23589384,101740.0,101730.0,0.42402239]
[1747317111245,0.02948536,101740.0,101730.0,0.43385165]
[1747317111454,0.03931414,101740.0,101730.0,0.43385165]
[1747317111657,0.03931414,101740.0,101730.0,0.1889348]
[1747317111658,0.21623697,101740.0,101730.0,0.1889348]
[1747317111867,0.21623697,101740.0,101730.0,0.41519283]
[1747317112083,0.21623697,101740.0,101730.0,0.39536338]
[1747317112300,0.21623697,101740.0,101730.0,0.42602219]
[1747317112301,0.01965746,101740.0,101730.0,0.42602219]
[1747317112729,0.02948633,101740.0,101730.0,0.42602219]
[1747317112936,0.22606584,101740.0,101730.0,0.40636338]
[1747317113141,0.23589481,101740.0,101730.0,0.41619283]